[Event "WWRR IM 2019"]
[Site "Wachtebeke"]
[Date "2019.03.03"]
[Round "2.4"]
[White "Van der Lende, Ilias"]
[Black "Vuelban, Virgilio"]
[Result "1/2-1/2"]
[ECO "B22"]
[WhiteElo "2343"]
[BlackElo "2272"]
[Annotator "NA"]
[PlyCount "119"]
[EventDate "2019.03.02"]
[EventCountry "BEL"]
[SourceTitle "playchess.com"]
[Source "ChessBase"]
[SourceQuality "1"]
[TimeControl "40/5400+30:900+30"]

1. e4 {[%emt 0:00:00]} c5 {[%emt 0:05:46]} 2. c3 {[%emt 0:00:00]} Nf6 {[%emt 0:00:19]} 3. e5 {[%emt 0:00:00]} Nd5 {[%emt 0:00:05]} 4. d4 {[%emt 0:00:02]} cxd4 {[%emt 0:00:04]} 5. Nf3 {[%emt 0:00:05]} e6 {[%emt 0:00:05]} 6. cxd4 {[%emt 0:00:06]} d6 {[%emt 0:00:05]} 7. Bc4 {[%emt 0:00:21]} Nc6 {[%emt 0:00:09]} 8. O-O {[%emt 0:00:11]} Be7 {[%emt 0:00:10]} 9. exd6 {[%emt 0:00:09]} Qxd6 {[%emt 0:00:06]} 10. Nc3 {[%emt 0:00:06]} O-O {[%emt 0:00:28]} 11. Re1 {[%emt 0:00:06]} Rd8 {[%emt 0:02:19]} 12. Bb3 {[%emt 0:02:32]} Nxc3 {[%emt 0:02:40]} 13. bxc3 {[%emt 0:00:51]} b6 {[%emt 0:00:05]} 14. Ng5 {[%emt 0:00:47]} Na5 {[%emt 0:22:51]} 15. Qf3 {[%emt 0:19:53]} Bxg5 {[%emt 0:00:56]} 16. Bxg5 {[%emt 0:00:42]} Bb7 {[%emt 0:00:13]} 17. Qg4 {[%emt 0:00:07]} h5 {[%emt 0:06:47]} 18. Qh3 {[%emt 0:02:40]} Nxb3 {[%emt 0:00:26]} 19. axb3 {[%emt 0:00:07]} f6 {[%emt 0:16:03]} 20. Be3 {[%emt 0:14:26]} g6 {[%emt 0:01:19]} 21. c4 {[%emt 0:02:28]} Kf7 {[%emt 0:00:23]} 22. Bf4 {[%emt 0:11:34]} Qc6 {[%emt 0:05:18]} 23. Rad1 {[%emt 0:00:29]} Rd7 {[%emt 0:04:07]} 24. Bc1 {[%emt 0:01:12]} a5 {[%emt 0:04:32]} 25. Ba3 {[%emt 0:03:55]} Re8 {[%emt 0:05:21]} 26. d5 {[%emt 0:09:58]} exd5 {[%emt 0:00:37]} 27. Rxe8 {[%emt 0:00:27]} Kxe8 {[%emt 0:00:06]} 28. Qe3+ {[%emt 0:01:03]} Kf7 {[%emt 0:08:56]} 29. Re1 {[%emt 0:02:17]} Kg7 {[%emt 0:04:15]} 30. Qe8 {[%emt 0:00:32]} Rf7 {[%emt 0:01:47]} 31. Bf8+ {[%emt 0:00:18]} Kg8 {[%emt 0:00:49]} 32. Bc5+ {[%emt 0:01:35]} Qxe8 {[%emt 0:00:19]} 33. Rxe8+ {[%emt 0:00:06]} Kg7 {[%emt 0:00:51]} 34. Bxb6 {[%emt 0:00:07]} a4 {[%emt 0:01:23]} 35. bxa4 {[%emt 0:01:51]} dxc4 {[%emt 0:00:06]} 36. Re3 {[%emt 0:01:03]} Rd7 {[%emt 0:00:33]} 37. h3 {[%emt 0:00:12]} Kf7 {[%emt 0:01:01]} 38. Bc5 {[%emt 0:02:23]} f5 {[%emt 0:01:13]} 39. Kh2 {[%emt 0:01:28]} f4 {[%emt 0:00:34]} 40. Rc3 {[%emt 0:00:19]} Ba6 {[%emt 0:03:16]} 41. h4 {[%emt 0:19:15]} Ke6 {[%emt 0:16:11]} 42. a5 {[%emt 0:02:13]} Rd3 {[%emt 0:01:17]} 43. Rxd3 {[%emt 0:06:01]} cxd3 {[%emt 0:00:06]} 44. Bb4 {[%emt 0:00:03]} Kd5 {[%emt 0:00:29]} 45. f3 {[%emt 0:00:45]} Ke5 {[%emt 0:00:00]} 46. Bd2 {[%emt 0:00:00]} Kf5 {[%emt 0:00:00]} 47. Kg1 {[%emt 0:00:00]} Bb5 {[%emt 0:00:00]} 48. Kf2 {[%emt 0:00:00]} Ba6 {[%emt 0:00:00]} 49. Ke1 {[%emt 0:00:00]} Bb5 {[%emt 0:00:00]} 50. Kd1 {[%emt 0:00:00]} g5 {[%emt 0:00:00]} 51. hxg5 {[%emt 0:00:00]} Kxg5 {[%emt 0:00:00]} 52. Kc1 {[%emt 0:00:00]} h4 {[%emt 0:00:00]} 53. Be1 {[%emt 0:00:00]} d2+ {[%emt 0:04:23]} 54. Kxd2 {[%emt 0:00:00]} Bf1 {[%emt 0:00:05]} 55. Bf2 {[%emt 0:00:00]} Bxg2 {[%emt 0:00:06]} 56. Ke2 {[%emt 0:00:00]} Bh3 {[%emt 0:00:10]} 57. a6 {[%emt 0:00:00]} Bc8 {[%emt 0:00:04]} 58. a7 {[%emt 0:00:00]} Bb7 {[%emt 0:00:04]} 59. Bg1 {[%emt 0:00:00]} h3 {[%emt 0:00:09]} 60. Bh2 {[%emt 0:00:00]} 1/2-1/2

[Event "WWRR IM 2019"]
[Site "Wachtebeke"]
[Date "2019.03.03"]
[Round "2.5"]
[White "De Ruiter, Danny"]
[Black "Huynh, Laurent"]
[Result "1/2-1/2"]
[ECO "E17"]
[WhiteElo "2328"]
[BlackElo "2138"]
[Annotator "NA"]
[PlyCount "55"]
[EventDate "2019.03.02"]
[EventCountry "BEL"]
[SourceTitle "playchess.com"]
[Source "ChessBase"]
[SourceQuality "1"]
[TimeControl "40/5400+30:900+30"]

1. Nf3 {[%emt 0:00:00]} Nf6 {[%emt 0:00:00]} 2. c4 {[%emt 0:00:00]} e6 {[%emt 0:00:00]} 3. g3 {[%emt 0:00:02]} Be7 {[%emt 0:00:30]} 4. Bg2 {[%emt 0:00:11]} O-O {[%emt 0:00:22]} 5. O-O {[%emt 0:00:07]} d5 {[%emt 0:00:04]} 6. b3 {[%emt 0:00:08]} b6 {[%emt 0:00:51]} 7. Bb2 {[%emt 0:00:16]} Bb7 {[%emt 0:00:22]} 8. d4 {[%emt 0:00:20]} Nbd7 {[%emt 0:00:19]} 9. Nc3 {[%emt 0:00:50]} c5 {[%emt 0:01:01]} 10. cxd5 {[%emt 0:00:25]} Nxd5 {[%emt 0:00:20]} 11. Nxd5 {[%emt 0:01:58]} Bxd5 {[%emt 0:00:22]} 12. Qd2 {[%emt 0:02:49]} Bf6 {[%emt 0:05:59]} 13. Rac1 {[%emt 0:05:15]} Rc8 {[%emt 0:02:12]} 14. Rfd1 {[%emt 0:00:39]} Qe7 {[%emt 0:19:41]} 15. Ba3 {[%emt 0:02:04]} Rfd8 {[%emt 0:01:46]} 16. dxc5 {[%emt 0:02:03]} Nxc5 {[%emt 0:01:13]} 17. Qe3 {[%emt 0:04:55]} Qf8 {[%emt 0:05:54]} 18. Bxc5 {[%emt 0:02:35]} Rxc5 {[%emt 0:00:35]} 19. Rxc5 {[%emt 0:00:41]} Qxc5 {[%emt 0:00:24]} 20. Qxc5 {[%emt 0:00:29]} bxc5 {[%emt 0:00:02]} 21. Rc1 {[%emt 0:00:17]} Bxf3 {[%emt 0:01:19]} 22. Bxf3 {[%emt 0:00:20]} Rc8 {[%emt 0:01:28]} 23. Rc4 {[%emt 0:04:33]} a5 {[%emt 0:04:29]} 24. e3 {[%emt 0:02:31]} Kf8 {[%emt 0:00:47]} 25. Kf1 {[%emt 0:00:53]} Ke7 {[%emt 0:00:30]} 26. Ke2 {[%emt 0:00:38]} Bb2 {[%emt 0:00:18]} 27. Ra4 {[%emt 0:03:06]} Bc3 {[%emt 0:00:27]} 28. Rc4 {[%emt 0:01:03]} 1/2-1/2

[Event "WWRR IM 2019"]
[Site "Wachtebeke"]
[Date "2019.03.04"]
[Round "4.1"]
[White "Maerevoet, Sim"]
[Black "Hautot, Stephane"]
[Result "1-0"]
[ECO "B15"]
[WhiteElo "2251"]
[BlackElo "2347"]
[Annotator "NA RC"]
[PlyCount "65"]
[EventDate "2019.03.02"]
[EventCountry "BEL"]
[SourceTitle "playchess.com"]
[Source "ChessBase"]
[SourceQuality "1"]
[TimeControl "40/5400+30:900+30"]

1. e4 {[%emt 0:04:02]} g6 {[%emt 0:05:18]} 2. d4 {[%emt 0:00:25]} Bg7 {[%emt 0:00:05]} 3. Nc3 {[%emt 0:00:08]} c6 {[%emt 0:01:49]} 4. Nf3 {[%emt 0:06:06]} d5 {[%emt 0:00:14]} 5. h3 {[%emt 0:00:16] LiveBook: 2346 Games} Nh6 {[%emt 0:01:03]} 6. Be2 {[%emt 0:05:55]} O-O {[%emt 0:01:03]} 7. O-O {[%emt 0:00:27]} f6 {[%emt 0:00:16]} 8. Re1 {[%emt 0:07:21]} Nf7 {[%emt 0:01:37]} 9. Bf1 {[%emt 0:05:56]} Re8 {[%emt 0:01:14] B15: Caro-Kann: 3 Nc3: 3...g6 and 3...dxe4 4 Nxe4 Nf6 5 Nxf6+ exf6} (9... b6 10. b3 e6 11. a4 Ba6 12. Ba3 Re8 13. Bd3 Bxd3 14. Qxd3 a5 15. Rad1 Na6 16. h4 Nb4 17. Qd2 {1-0 (69) Sanal,V (2490)-Laznicka,V (2675) Skopje 2018}) 10. Be3 {[%emt 0:07:27]} e6 {[%emt 0:05:06]} 11. a4 $146 {[%emt 0:05:16]} ({Predecessor:} 11. Qd2 Nd7 12. Rad1 b5 13. Bd3 Bb7 14. exd5 exd5 15. Bf4 Nf8 16. Rxe8 Qxe8 17. Re1 {0-1 (72) Fuentes,M (2196)-Terry Lujan,R (2447) Lima 2016}) 11... Nd7 {[%emt 0:11:19]} 12. a5 {[%emt 0:01:39]} b5 {[%emt 0:17:43]} 13. axb6 {[%emt 0:01:05]} Nxb6 {[%emt 0:00:07]} 14. Nd2 {[%emt 0:04:54]} Nd6 {[%emt 0:10:58]} 15. g3 {[%emt 0:11:58]} e5 {[%emt 0:18:04]} 16. dxe5 {[%emt 0:05:18]} fxe5 {[%emt 0:00:15]} 17. Bxb6 {[%emt 0:01:18]} Qxb6 {[%emt 0:00:06]} 18. exd5 {[%emt 0:00:10]} Rf8 {[%emt 0:08:17]} 19. Nde4 {[%emt 0:07:14]} Nxe4 {[%emt 0:00:57]} 20. Nxe4 {[%emt 0:00:08]} Bf5 {[%emt 0:03:27]} 21. Ra6 {[%emt 0:02:35]} Qxb2 {[%emt 0:06:53]} 22. dxc6 {[%emt 0:00:55]} Rad8 $2 {[%emt 0:00:30]} (22... Kh8 23. Bg2 Rad8) 23. Nd6 {[%emt 0:01:47]} Rxd6 {[%emt 0:02:54]} 24. Qxd6 {[%emt 0:00:22]} Qxc2 {[%emt 0:00:33]} 25. Qd1 {[%emt 0:04:35]} Qc5 {[%emt 0:00:29]} 26. Qc1 {[%emt 0:00:13]} Qe7 {[%emt 0:01:37]} 27. Qa3 {[%emt 0:01:14]} Qf6 {[%emt 0:00:43]} 28. Qc5 {[%emt 0:01:02]} Bc8 {[%emt 0:00:33]} 29. Rxa7 {[%emt 0:00:41]} Kh8 {[%emt 0:00:08]} 30. Bg2 $18 {[%emt 0:01:09]} e4 {[%emt 0:01:04]} 31. Rxe4 {[%emt 0:01:01]} Qb2 {[%emt 0:00:27]} 32. Ree7 {[%emt 0:00:56]} Qb1+ {[%emt 0:00:37]} 33. Kh2 {[%emt 0:00:27]} 1-0

[Event "WWRR IM 2019"]
[Site "Wachtebeke"]
[Date "2019.03.04"]
[Round "4.4"]
[White "De Ruiter, Danny"]
[Black "Blom, Vincent"]
[Result "1-0"]
[ECO "E18"]
[WhiteElo "2328"]
[BlackElo "2265"]
[Annotator "NA RC"]
[PlyCount "153"]
[EventDate "2019.03.02"]
[EventCountry "BEL"]
[SourceTitle "playchess.com"]
[Source "ChessBase"]
[SourceQuality "1"]
[TimeControl "40/5400+30:900+30"]

1. d4 {[%emt 0:00:00]} Nf6 {[%emt 0:00:00]} 2. c4 {[%emt 0:00:56]} e6 {[%emt 0:00:16]} 3. Nf3 {[%emt 0:00:14]} b6 {[%emt 0:03:17]} 4. g3 {[%emt 0:00:38]} Bb7 {[%emt 0:04:55]} 5. Bg2 {[%emt 0:00:10]} Be7 {[%emt 0:03:51]} 6. O-O {[%emt 0:00:30]} O-O {[%emt 0:00:39]} 7. Nc3 {[%emt 0:00:20]} Ne4 {[%emt 0:00:05]} 8. Bd2 {[%emt 0:00:15]} f5 {[%emt 0:07:47]} 9. Qc2 {[%emt 0:01:09]} Bf6 {[%emt 0:11:21]} 10. Rad1 {[%emt 0:00:06]} Nxc3 11. Bxc3 {[%emt 0:00:06]} d6 {[%emt 0:08:13] E18: Queen's Indian: Old Main Line (4 g3 Bb7 5 Bg2 Be7 6 0-0 0-0 7 Nc3)} (11... Be4 12. Qd2 d6 13. Ne1 Bxg2 14. Nxg2 Nd7 15. Qc2 Qe8 16. e4 fxe4 17. Qxe4 e5 18. Qd5+ Qf7 19. Ne3 Rae8 20. Qxf7+ Rxf7 21. Kg2 exd4 22. Bxd4 {1-0 (56) Alekseev,E (2715)-Adams,M (2734) Motril 2008}) 12. Ne1 {[%emt 0:05:16]} Bxg2 {[%emt 0:11:36]} 13. Nxg2 {[%emt 0:00:07]} Qd7 {[%emt 0:14:21]} 14. Ne3 $146 {[%emt 0:11:35]} ({Predecessor:} 14. e4 fxe4 15. Qxe4 d5 16. Qe2 Nc6 17. Nf4 Rae8 18. Qg4 {1-0 (77) Kononenko,T (2388)-Matnadze,A (2415) Antalya 2002}) 14... g6 {[%emt 0:02:53]} 15. d5 {[%emt 0:06:22]} e5 {[%emt 0:00:27]} 16. f4 {[%emt 0:00:05]} exf4 {[%emt 0:07:14]} 17. Bxf6 {[%emt 0:00:17]} Rxf6 {[%emt 0:00:24]} 18. Rxf4 {[%emt 0:01:19]} Qe7 {[%emt 0:04:13]} 19. Qc3 {[%emt 0:08:06]} Nd7 {[%emt 0:00:43]} 20. Nc2 {[%emt 0:00:44]} a5 {[%emt 0:06:00]} 21. Rdf1 {[%emt 0:02:39]} Rff8 {[%emt 0:04:51]} 22. Nd4 {[%emt 0:08:08]} Nc5 {[%emt 0:01:17]} 23. g4 {[%emt 0:01:38]} fxg4 {[%emt 0:01:35]} 24. Nc6 {[%emt 0:05:09]} Qg7 {[%emt 0:00:36]} 25. Rxf8+ {[%emt 0:00:30]} Rxf8 {[%emt 0:00:10]} 26. Rxf8+ {[%emt 0:00:25]} Kxf8 {[%emt 0:00:25]} 27. Qe3 {[%emt 0:00:06]} Qf6 {[%emt 0:01:41]} 28. b3 {[%emt 0:02:39]} h5 {[%emt 0:00:50]} 29. a3 {[%emt 0:00:39]} Kg7 {[%emt 0:02:00]} 30. b4 axb4 {[%emt 0:00:03]} 31. axb4 {[%emt 0:02:12]} Nd7 {[%emt 0:00:50]} 32. Nd4 {[%emt 0:01:08]} (32. Qe8 $1 $15 Nf8 33. Kg2) 32... Ne5 {[%emt 0:01:39]} 33. Ne6+ {[%emt 0:00:11]} Kh7 {[%emt 0:00:10]} 34. c5 {[%emt 0:01:40]} bxc5 {[%emt 0:00:44]} 35. bxc5 {[%emt 0:00:06]} Qh4 {[%emt 0:01:43]} 36. cxd6 {[%emt 0:05:07]} Qe1+ {[%emt 0:00:12]} 37. Kg2 {[%emt 0:00:01]} Nf3 {[%emt 0:00:48]} 38. Nf8+ {[%emt 0:04:15]} Kg7 {[%emt 0:00:34]} 39. Qe7+ {[%emt 0:01:16] Double Attack} Kg8 {[%emt 0:00:31]} 40. exf3 {[%emt 0:00:12]} gxf3+ {[%emt 0:00:27]} 41. Kxf3 {[%emt 0:16:37]} Qf1+ {[%emt 0:15:21]} 42. Ke3 {[%emt 0:01:03]} cxd6 {[%emt 0:00:00]} 43. Ne6 {[%emt 0:00:00]} Qc1+ {[%emt 0:00:00]} 44. Kd3 {[%emt 0:00:00]} Qa3+ {[%emt 0:00:00]} 45. Ke4 {[%emt 0:00:00]} Qb4+ {[%emt 0:00:00]} 46. Ke3 {[%emt 0:00:00]} Qc3+ {[%emt 0:00:00]} 47. Kf4 {[%emt 0:00:00]} Qd2+ {[%emt 0:00:00]} 48. Kg3 {[%emt 0:00:00]} h4+ {[%emt 0:00:15]} 49. Qxh4 {[%emt 0:00:00]} Qe1+ {[%emt 0:00:32]} 50. Kg4 {[%emt 0:01:09]} Qd1+ {[%emt 0:01:02]} 51. Kg5 {[%emt 0:03:11]} Qxd5+ $18 {[%emt 0:00:45]} 52. Kf6 {[%emt 0:00:16]} Qe5+ {[%emt 0:00:38]} 53. Ke7 {[%emt 0:00:08]} Qb2 {[%emt 0:00:36]} 54. Qe4 {[%emt 0:03:19]} Kh8 {[%emt 0:01:11]} 55. Qxg6 {[%emt 0:03:25]} Qb7+ {[%emt 0:00:13]} 56. Kf8 {[%emt 0:03:04]} Qc8+ {[%emt 0:00:50]} 57. Kf7 {[%emt 0:07:46]} Qb7+ {[%emt 0:00:16]} 58. Kf6 {[%emt 0:00:20]} Qb2+ {[%emt 0:00:11]} 59. Kg5 {[%emt 0:00:52]} Qg2+ {[%emt 0:00:12]} 60. Kf6 {[%emt 0:00:04]} Qb2+ {[%emt 0:00:09]} 61. Ke7 {[%emt 0:00:24]} Qb7+ {[%emt 0:00:24]} 62. Kf8 {[%emt 0:00:21]} Qc8+ {[%emt 0:00:36]} 63. Qe8 {[%emt 0:00:04]} Qxe8+ {[%emt 0:00:11]} 64. Kxe8 {[%emt 0:00:02]} Kh7 {[%emt 0:00:11]} 65. Kf7 {[%emt 0:01:43]} Kh6 {[%emt 0:00:15]} 66. Kf6 {[%emt 0:00:05]} Kh5 {[%emt 0:00:15]} 67. Kf5 {[%emt 0:00:30]} Kh4 {[%emt 0:00:27]} 68. Nf4 {[%emt 0:00:26]} d5 {[%emt 0:00:16]} 69. Ke5 {[%emt 0:00:08]} Kg4 {[%emt 0:00:18]} 70. h3+ {[%emt 0:00:20]} Kg3 {[%emt 0:00:41]} 71. Kf5 {[%emt 0:00:05]} d4 {[%emt 0:00:13]} 72. Kg5 {[%emt 0:00:15]} d3 {[%emt 0:00:07]} 73. h4 {[%emt 0:00:13]} d2 {[%emt 0:00:37]} 74. Ne2+ {[%emt 0:00:37]} Kf3 {[%emt 0:01:54]} 75. Nc3 {[%emt 0:00:02]} Ke3 {[%emt 0:00:11]} 76. h5 {[%emt 0:00:19]} Kd3 {[%emt 0:00:10]} 77. Nd1 {[%emt 0:00:02]} 1-0

[Event "WWRR IM 2019"]
[Site "Wachtebeke"]
[Date "2019.03.05"]
[Round "6.1"]
[White "Maerevoet, Sim"]
[Black "Dardha, Daniel"]
[Result "1/2-1/2"]
[ECO "E32"]
[WhiteElo "2251"]
[BlackElo "2369"]
[Annotator "NA"]
[PlyCount "33"]
[EventDate "2019.03.02"]
[EventCountry "BEL"]
[SourceTitle "playchess.com"]
[Source "ChessBase"]
[SourceQuality "1"]
[TimeControl "40/5400+30:900+30"]

1. d4 {[%emt 0:00:00]} Nf6 {[%emt 0:00:01]} 2. c4 {[%emt 0:00:00]} e6 {[%emt 0:00:04]} 3. Nc3 {[%emt 0:00:13]} Bb4 {[%emt 0:00:25]} 4. Qc2 {[%emt 0:00:24]} c5 {[%emt 0:03:27]} 5. dxc5 {[%emt 0:00:34]} O-O {[%emt 0:01:28]} 6. Nf3 {[%emt 0:02:32]} Bxc5 {[%emt 0:01:28]} 7. Bg5 {[%emt 0:06:33]} h6 {[%emt 0:04:04]} 8. Bh4 {[%emt 0:00:44]} Be7 {[%emt 0:13:21]} 9. Rd1 {[%emt 0:03:26]} d6 {[%emt 0:05:16]} 10. e4 {[%emt 0:09:58]} Nbd7 {[%emt 0:03:02]} 11. Be2 {[%emt 0:02:20]} a6 {[%emt 0:01:10]} 12. O-O {[%emt 0:11:07]} Qc7 {[%emt 0:02:37]} 13. Nd4 {[%emt 0:00:58]} b6 {[%emt 0:03:15]} 14. f4 {[%emt 0:11:05]} Bb7 {[%emt 0:05:36]} 15. Bf2 {[%emt 0:05:29]} Rfe8 {[%emt 0:04:49]} 16. Kh1 {[%emt 0:02:46]} Bf8 {[%emt 0:02:22]} 17. Bg3 {[%emt 0:07:15]} 1/2-1/2

[Event "WWRR IM 2019"]
[Site "Wachtebeke"]
[Date "2019.03.05"]
[Round "6.2"]
[White "Van der Lende, Ilias"]
[Black "Hautot, Stephane"]
[Result "1-0"]
[ECO "B07"]
[WhiteElo "2343"]
[BlackElo "2347"]
[Annotator "NA"]
[PlyCount "81"]
[EventDate "2019.03.02"]
[EventCountry "BEL"]
[SourceTitle "playchess.com"]
[Source "ChessBase"]
[SourceQuality "1"]
[TimeControl "40/5400+30:900+30"]

1. e4 {[%emt 0:00:09]} d6 {[%emt 0:04:18]} 2. d4 {[%emt 0:00:10]} Nf6 {[%emt 0:00:16]} 3. Nc3 {[%emt 0:00:08]} Nbd7 {[%emt 0:01:07]} 4. f4 {[%emt 0:02:26]} e5 {[%emt 0:00:11]} 5. Nf3 {[%emt 0:00:06]} exd4 {[%emt 0:00:15]} 6. Qxd4 {[%emt 0:00:12]} c6 {[%emt 0:00:12]} 7. Be3 {[%emt 0:02:45]} d5 {[%emt 0:00:32]} 8. O-O-O {[%emt 0:05:59] B07: Pirc Defence: Miscellaneous Systems} Bc5 {[%emt 0:03:15]} 9. Qd2 {[%emt 0:01:22]} Bxe3 {[%emt 0:05:10]} (9... O-O 10. e5 Bxe3 11. Qxe3 Ng4 12. Qe1 Qb6 13. Nd4 Nc5 14. h3 Nh6 15. g4 Ne6 {0-1 (44) Neiksans,A (2631)-Bortnyk,O (2581) Tallinn 2016}) 10. Qxe3 {[%emt 0:00:06]} Qb6 {[%emt 0:03:34]} 11. Nd4 {[%emt 0:03:21]} dxe4 $146 {[%emt 0:02:12]} ({Predecessor:} 11... O-O 12. e5 c5 13. exf6 cxd4 14. Qxd4 Qxd4 15. Rxd4 Nxf6 16. Nxd5 Nxd5 17. Rxd5 {1-0 (28) Meulemans,B (2088)-Nolf,F (1154) LSS email 2010}) 12. Nxe4 {[%emt 0:17:33]} O-O {[%emt 0:00:28]} 13. Nd6 {[%emt 0:01:33]} Qc5 {[%emt 0:23:08]} (13... Nd5 $5 {[%cal Rd5e3]} 14. Qg3 N7f6 $11) 14. Nxc8 {[%emt 0:14:05]} Rfxc8 {[%emt 0:03:13]} 15. Qh3 {[%emt 0:02:35]} Nf8 {[%emt 0:02:06]} 16. Qf5 {[%emt 0:04:02]} Qb4 {[%emt 0:17:14]} 17. a3 {[%emt 0:06:07]} Qa4 {[%emt 0:01:43]} 18. Nb3 {[%emt 0:11:18]} Rd8 {[%emt 0:02:47]} 19. Rxd8 {[%emt 0:02:30]} (19. Be2 $1 $11) 19... Rxd8 {[%emt 0:01:11]} 20. g3 {[%emt 0:01:11]} c5 {[%emt 0:15:29]} 21. Bg2 $1 {[%emt 0:03:04]} c4 {[%emt 0:01:07]} 22. Qa5 {[%emt 0:00:27]} Qd7 {[%emt 0:02:28]} 23. Nc5 {[%emt 0:00:18]} Qd4 {[%emt 0:01:23]} 24. Bxb7 {[%emt 0:06:02]} Ng4 {[%emt 0:01:09]} 25. Kb1 {[%emt 0:01:32]} Nf2 {[%emt 0:01:27] [#]} 26. Re1 $1 {[%emt 0:02:03]} Nd1 {[%emt 0:02:22]} 27. Na4 {[%emt 0:03:07]} Rd6 $2 {[%emt 0:01:42]} (27... Qf2) 28. Qe5 {[%emt 0:01:31]} Qd2 {[%emt 0:01:20]} 29. Re2 {[%emt 0:00:58]} Qd4 {[%emt 0:00:12]} 30. Qxd4 {[%emt 0:00:08]} Rxd4 {[%emt 0:00:02]} 31. Kc1 {[%emt 0:01:03]} c3 {[%emt 0:00:27]} 32. b3 {[%emt 0:01:41]} g5 {[%emt 0:00:27]} 33. fxg5 {[%emt 0:01:15]} Ne6 {[%emt 0:00:18]} 34. h4 {[%emt 0:00:55]} Rd8 {[%emt 0:00:26]} 35. Re1 {[%emt 0:00:58]} Nd4 {[%emt 0:00:34]} 36. Ba6 {[%emt 0:02:08]} Nf2 {[%emt 0:01:02]} 37. Nxc3 {[%emt 0:00:11]} Rd6 {[%emt 0:01:27]} 38. Bc4 {[%emt 0:00:14]} Nc6 $18 {[%emt 0:00:54]} 39. Rf1 {[%emt 0:00:20]} Ng4 {[%emt 0:00:06]} 40. Rxf7 {[%emt 0:01:11]} Nce5 {[%emt 0:00:12]} 41. Rf4+ {[%emt 0:15:42]} 1-0

[Event "WWRR IM 2019"]
[Site "Wachtebeke"]
[Date "2019.03.05"]
[Round "6.3"]
[White "De Ruiter, Danny"]
[Black "Beukema, Jasper"]
[Result "0-1"]
[ECO "E05"]
[WhiteElo "2328"]
[BlackElo "2282"]
[Annotator "NA"]
[PlyCount "120"]
[EventDate "2019.03.02"]
[EventCountry "BEL"]
[SourceTitle "playchess.com"]
[Source "ChessBase"]
[SourceQuality "1"]
[TimeControl "40/5400+30:900+30"]

1. Nf3 {[%emt 0:00:00]} d5 {[%emt 0:00:11]} 2. d4 {[%emt 0:00:00]} Nf6 {[%emt 0:00:15]} 3. c4 {[%emt 0:00:00]} e6 {[%emt 0:00:06]} 4. g3 {[%emt 0:03:28]} Be7 {[%emt 0:01:35]} 5. Bg2 {[%emt 0:00:42]} O-O {[%emt 0:00:09]} 6. O-O {[%emt 0:00:06]} dxc4 {[%emt 0:00:50]} 7. Qc2 {[%emt 0:00:09]} a6 {[%emt 0:00:05]} 8. Qxc4 {[%emt 0:00:09]} b5 {[%emt 0:00:47]} 9. Qc2 {[%emt 0:00:07]} Bb7 {[%emt 0:00:07]} 10. Bd2 {[%emt 0:00:07]} Nbd7 {[%emt 0:00:06]} 11. Ba5 {[%emt 0:00:19]} Rc8 {[%emt 0:04:42]} 12. Rc1 {[%emt 0:02:05] E05: Open Catalan: 5 Nf3 Be7} (12. Nbd2 Nb8 13. a3 Nc6 14. Bc3 b4 15. axb4 Nxb4 16. Qa4 Nbd5 17. Ba5 Qd7 18. Ne5 Qxa4 19. Rxa4 c5 {½-½ (37) Gelfand,B (2723)-Leko,P (2740) Wijk aan Zee 2006}) 12... Nb6 {[%emt 0:06:46]} 13. Nbd2 {[%emt 0:10:25]} c5 {[%emt 0:02:35]} 14. Qd1 $146 {[%emt 0:00:08]} ({Predecessor:} 14. dxc5 Bxc5 15. Qd1 Qd6 16. Nb3 Qxd1+ 17. Rxd1 Na4 18. Nxc5 Nxc5 19. Rac1 Rfe8 {½-½ (43) Vignesh,N (2354)-Kiran,M (2259) Pune 2014}) 14... cxd4 {[%emt 0:05:16]} 15. Rxc8 {[%emt 0:00:57]} Bxc8 {[%emt 0:00:05]} 16. Ne5 {[%emt 0:04:38]} Qd6 {[%emt 0:02:44]} 17. Nc6 {[%emt 0:00:50]} Nbd5 {[%emt 0:10:44]} 18. Nxe7+ {[%emt 0:10:47]} Nxe7 {[%emt 0:01:36]} 19. Nb3 {[%emt 0:00:15]} e5 {[%emt 0:01:39]} 20. e3 {[%emt 0:01:23]} Nc6 {[%emt 0:08:14]} 21. Bb6 {[%emt 0:00:37]} Nd7 {[%emt 0:02:17]} 22. Rc1 {[%emt 0:00:08]} Nxb6 {[%emt 0:03:09]} 23. Rxc6 {[%emt 0:01:11]} Qd8 {[%emt 0:00:06]} 24. exd4 {[%emt 0:07:13]} Nc4 {[%emt 0:03:24]} 25. d5 {[%emt 0:01:20]} Bb7 {[%emt 0:05:14]} 26. Rc5 {[%emt 0:01:16]} Nxb2 {[%emt 0:08:41]} 27. Qd2 {[%emt 0:05:50]} Nc4 {[%emt 0:11:09]} 28. Qb4 {[%emt 0:11:49]} Nb6 {[%emt 0:01:46]} 29. Na5 {[%emt 0:00:14]} Bxd5 {[%emt 0:01:12]} 30. Bxd5 {[%emt 0:02:21]} Nxd5 {[%emt 0:00:08]} 31. Qd2 {[%emt 0:00:03]} Nf6 {[%emt 0:01:18]} 32. Qxd8 {[%emt 0:01:14]} Rxd8 {[%emt 0:00:02]} 33. Nc6 {[%emt 0:00:26] [#]} (33. Rc6 $17) 33... Rd1+ $1 {[%emt 0:02:34]} 34. Kg2 {[%emt 0:00:08]} Nd7 {[%emt 0:00:51]} 35. Rc2 {[%emt 0:01:51]} g6 {[%emt 0:07:52]} 36. Nb4 {[%emt 0:01:44]} Rd6 {[%emt 0:01:31]} 37. Rc7 {[%emt 0:00:09]} Kg7 {[%emt 0:01:43]} 38. Nxa6 {[%emt 0:00:56]} Rxa6 {[%emt 0:00:07]} 39. Rxd7 {[%emt 0:00:03]} Rxa2 {[%emt 0:00:06]} 40. Rd5 {[%emt 0:00:02]} e4 {[%emt 0:00:21]} 41. Rxb5 {[%emt 0:18:16]} e3 $1 {[%emt 0:16:13]} 42. Re5 {[%emt 0:00:38]} Rxf2+ {[%emt 0:06:29]} ({But not} 42... exf2 43. h3 $17) 43. Kg1 {[%emt 0:01:32]} Re2 {[%emt 0:00:11]} 44. Kf1 $2 {[%emt 0:01:05]} (44. h3 {was forced.}) 44... Rxh2 {[%emt 0:00:09]} 45. Rxe3 {[%emt 0:00:02]} Kf6 {[%emt 0:01:46]} 46. Re4 {[%emt 0:00:55]} Kg5 {[%emt 0:00:22]} 47. Kg1 {[%emt 0:00:28]} Ra2 {[%emt 0:00:14]} 48. Rh4 {[%emt 0:00:29]} h6 {[%emt 0:00:41]} 49. Rf4 {[%emt 0:00:26]} f5 {[%emt 0:00:14]} 50. Rb4 {[%emt 0:00:02]} Re2 {[%emt 0:00:10]} 51. Ra4 {[%emt 0:01:06]} Re4 {[%emt 0:00:18]} 52. Ra6 {[%emt 0:00:08]} h5 {[%emt 0:00:27]} 53. Kg2 {[%emt 0:00:44]} h4 {[%emt 0:00:06]} 54. gxh4+ {[%emt 0:00:28]} Rxh4 {[%emt 0:00:08]} 55. Kg3 {[%emt 0:00:34]} Rb4 {[%emt 0:00:07]} 56. Ra3 {[%emt 0:00:42]} Rg4+ $19 {[%emt 0:00:31]} 57. Kh3 {[%emt 0:02:42]} Rh4+ {[%emt 0:00:08]} 58. Kg2 {[%emt 0:00:09]} f4 {[%emt 0:00:39]} 59. Ra6 {[%emt 0:00:21]} Kf5 {[%emt 0:00:08]} 60. Rb6 {[%emt 0:01:00]} g5 {[%emt 0:00:09]} 0-1